[Event "Titled Tuesday Blitz August 08 Late 2023"]
[White "Pakleza, Zbigniew"]
[Black "He, Anthony"]
[WhiteFideId "1119290"]
[BlackFideId "2088215"]
[WhiteElo "2831"]
[BlackElo "2958"]
[Result "1-0"]
[Round "10"]
[TimeControl "180+1"]
[Date "2023.08.08"]
[WhiteClock "0:00:02"]
[BlackClock "0:00:00"]
[Board "9"]

1. d4 {[%clk 0:03:00]}  Nf6 {[%clk 0:03:00]} 2. Nf3 {[%clk 0:03:01]}  c5 {[%clk 0:03:01]} 3. c3 {[%clk 0:03:01]}  d5 {[%clk 0:02:59]} 4. Bf4 {[%clk 0:03:01]}  Nc6 {[%clk 0:02:58]} 5. Nbd2 {[%clk 0:03:01]}  cxd4 {[%clk 0:02:47]} 6. cxd4 {[%clk 0:03:02]}  Bf5 {[%clk 0:02:46]} 7. e3 {[%clk 0:03:01]}  e6 {[%clk 0:02:46]} 8. Qb3 {[%clk 0:03:01]}  Qb6 {[%clk 0:02:39]} 9. Qxb6 {[%clk 0:02:58]}  axb6 {[%clk 0:02:40]} 10. Bb5 {[%clk 0:02:59]}  Be7 {[%clk 0:02:38]} 11. Ke2 {[%clk 0:02:56]}  O-O {[%clk 0:02:38]} 12. Rhc1 {[%clk 0:02:56]}  Rfc8 {[%clk 0:02:36]} 13. a3 {[%clk 0:02:55]}  h6 {[%clk 0:02:31]} 14. Rc3 {[%clk 0:02:48]}  Bb4 {[%clk 0:02:28]} 15. Rcc1 {[%clk 0:02:48]}  Be7 {[%clk 0:02:28]} 16. h3 {[%clk 0:02:42]}  g5 {[%clk 0:02:23]} 17. Bh2 {[%clk 0:02:39]}  Kf8 {[%clk 0:02:22]} 18. Ne5 {[%clk 0:02:27]}  Na7 {[%clk 0:02:19]} 19. Bd7 {[%clk 0:01:54]}  Rxc1 {[%clk 0:02:16]} 20. Rxc1 {[%clk 0:01:54]}  Bd6 {[%clk 0:02:00]} 21. Ba4 {[%clk 0:01:45]}  Ke7 {[%clk 0:01:58]} 22. g4 {[%clk 0:01:35]}  Bh7 {[%clk 0:01:57]} 23. f3 {[%clk 0:01:21]}  b5 {[%clk 0:01:54]} 24. Bc2 {[%clk 0:01:05]}  Bxc2 {[%clk 0:01:47]} 25. Rxc2 {[%clk 0:01:06]}  Nd7 {[%clk 0:01:33]} 26. Nb3 {[%clk 0:01:00]}  Bxe5 {[%clk 0:01:29]} 27. Bxe5 {[%clk 0:00:55]}  Nc6 {[%clk 0:01:23]} 28. Bg3 {[%clk 0:00:49]}  Ra4 {[%clk 0:01:22]} 29. Nc5 {[%clk 0:00:41]}  Ra7 {[%clk 0:01:13]} 30. Nd3 {[%clk 0:00:33]}  f6 {[%clk 0:01:02]} 31. h4 {[%clk 0:00:33]}  Ra4 {[%clk 0:01:01]} 32. h5 {[%clk 0:00:28]}  e5 {[%clk 0:00:50]} 33. Nc5 {[%clk 0:00:15]}  Rc4 {[%clk 0:00:33]} 34. Rxc4 {[%clk 0:00:12]}  bxc4 {[%clk 0:00:33]} 35. Nxd7 {[%clk 0:00:04]}  Kxd7 {[%clk 0:00:34]} 36. dxe5 {[%clk 0:00:05]}  Nxe5 {[%clk 0:00:33]} 37. Bxe5 {[%clk 0:00:03]}  fxe5 {[%clk 0:00:34]} 38. Kd2 {[%clk 0:00:01]}  b5 {[%clk 0:00:30]} 39. Kc3 {[%clk 0:00:01]}  Kd6 {[%clk 0:00:28]} 40. Kb4 {[%clk 0:00:01]}  Kc6 {[%clk 0:00:24]} 41. b3 {[%clk 0:00:01]}  Kb6 {[%clk 0:00:19]} 42. a4 {[%clk 0:00:01]}  bxa4 {[%clk 0:00:03]} 43. bxa4 {[%clk 0:00:01]}  Kc6 {[%clk 0:00:00]} 44. e4 {[%clk 0:00:02]} 1-0


[Site "https://www.chess.com"]

[Event "Titled Tuesday Blitz August 08 Late 2023"]
[White "Henriquez Villagra, Cristobal"]
[Black "Urazayev, Arystanbek"]
[WhiteFideId "3409350"]
[BlackFideId "13709810"]
[WhiteElo "2863"]
[BlackElo "2759"]
[Result "1-0"]
[Round "10"]
[TimeControl "180+1"]
[Date "2023.08.08"]
[WhiteClock "0:00:23"]
[BlackClock "0:00:00"]
[Board "12"]

1. g3 {[%clk 0:02:57]}  d5 {[%clk 0:02:59]} 2. Bg2 {[%clk 0:02:57]}  Nf6 {[%clk 0:03:00]} 3. d3 {[%clk 0:02:57]}  e6 {[%clk 0:03:01]} 4. f4 {[%clk 0:02:57]}  Be7 {[%clk 0:02:59]} 5. Nh3 {[%clk 0:02:54]}  O-O {[%clk 0:03:00]} 6. O-O {[%clk 0:02:54]}  b6 {[%clk 0:03:00]} 7. Nd2 {[%clk 0:02:52]}  Bb7 {[%clk 0:03:00]} 8. e4 {[%clk 0:02:51]}  dxe4 {[%clk 0:03:00]} 9. dxe4 {[%clk 0:02:51]}  Nbd7 {[%clk 0:02:36]} 10. Nf2 {[%clk 0:02:50]}  e5 {[%clk 0:02:32]} 11. f5 {[%clk 0:02:47]}  Nc5 {[%clk 0:02:26]} 12. g4 {[%clk 0:02:42]}  h6 {[%clk 0:02:26]} 13. Re1 {[%clk 0:02:25]}  Re8 {[%clk 0:02:12]} 14. Qf3 {[%clk 0:02:25]}  Nh7 {[%clk 0:02:11]} 15. b4 {[%clk 0:02:18]}  Nd7 {[%clk 0:02:04]} 16. Rb1 {[%clk 0:02:15]}  Bh4 {[%clk 0:02:04]} 17. Nf1 {[%clk 0:02:08]}  Ng5 {[%clk 0:02:04]} 18. Qc3 {[%clk 0:02:00]}  Nf6 {[%clk 0:02:00]} 19. Ng3 {[%clk 0:01:58]}  Qe7 {[%clk 0:01:28]} 20. b5 {[%clk 0:01:58]}  c5 {[%clk 0:01:20]} 21. Qc4 {[%clk 0:01:16]}  Rad8 {[%clk 0:01:19]} 22. c3 {[%clk 0:01:17]}  Rd7 {[%clk 0:01:13]} 23. a4 {[%clk 0:01:16]}  Red8 {[%clk 0:01:14]} 24. Rb2 {[%clk 0:01:17]}  Ne8 {[%clk 0:01:06]} 25. Qe2 {[%clk 0:01:11]}  Nh7 {[%clk 0:01:00]} 26. Rd2 {[%clk 0:00:59]}  Bg5 {[%clk 0:00:59]} 27. Rxd7 {[%clk 0:00:58]}  Rxd7 {[%clk 0:01:00]} 28. Rd1 {[%clk 0:00:50]}  Rxd1+ {[%clk 0:00:45]} 29. Qxd1 {[%clk 0:00:50]}  Bxc1 {[%clk 0:00:45]} 30. Qxc1 {[%clk 0:00:51]}  Qd8 {[%clk 0:00:44]} 31. Nf1 {[%clk 0:00:42]}  Nef6 {[%clk 0:00:32]} 32. Qe3 {[%clk 0:00:39]}  a6 {[%clk 0:00:22]} 33. Nd2 {[%clk 0:00:35]}  axb5 {[%clk 0:00:20]} 34. axb5 {[%clk 0:00:36]}  Qa8 {[%clk 0:00:12]} 35. h3 {[%clk 0:00:36]}  Nf8 {[%clk 0:00:11]} 36. h4 {[%clk 0:00:35]}  Qa1+ {[%clk 0:00:08]} 37. Kh2 {[%clk 0:00:34]}  Qc1 {[%clk 0:00:08]} 38. Bf3 {[%clk 0:00:25]}  N6d7 {[%clk 0:00:06]} 39. g5 {[%clk 0:00:23]}  hxg5 {[%clk 0:00:07]} 40. hxg5 {[%clk 0:00:24]}  f6 {[%clk 0:00:08]} 41. g6 {[%clk 0:00:24]}  Qb2 {[%clk 0:00:04]} 42. Be2 {[%clk 0:00:23]}  Kh8 {[%clk 0:00:01]} 43. Qh3+ {[%clk 0:00:23]}  Kg8 {[%clk 0:00:00]} 44. Bc4+ {[%clk 0:00:23]} 1-0


[Site "https://www.chess.com"]

[Event "Titled Tuesday Blitz August 08 Late 2023"]
[White "Gadimbayli, Abdulla"]
[Black "Morefield, Jason"]
[WhiteFideId "13404938"]
[BlackFideId "30920825"]
[WhiteElo "2848"]
[BlackElo "2732"]
[Result "0-1"]
[Round "10"]
[TimeControl "180+1"]
[Date "2023.08.08"]
[WhiteClock "0:00:19"]
[BlackClock "0:00:05"]
[Board "13"]

1. e4 {[%clk 0:03:00]}  e5 {[%clk 0:02:56]} 2. Nf3 {[%clk 0:03:01]}  Nc6 {[%clk 0:02:57]} 3. Nc3 {[%clk 0:03:02]}  Nf6 {[%clk 0:02:56]} 4. d4 {[%clk 0:03:01]}  exd4 {[%clk 0:02:57]} 5. Nxd4 {[%clk 0:03:02]}  Bb4 {[%clk 0:02:57]} 6. Nxc6 {[%clk 0:03:03]}  bxc6 {[%clk 0:02:58]} 7. Bd3 {[%clk 0:03:03]}  O-O {[%clk 0:02:56]} 8. O-O {[%clk 0:03:03]}  d5 {[%clk 0:02:56]} 9. exd5 {[%clk 0:03:04]}  Bg4 {[%clk 0:02:56]} 10. f3 {[%clk 0:03:04]}  Bh5 {[%clk 0:02:56]} 11. Bg5 {[%clk 0:03:04]}  Bxc3 {[%clk 0:02:51]} 12. bxc3 {[%clk 0:03:05]}  cxd5 {[%clk 0:02:51]} 13. Rb1 {[%clk 0:02:59]}  Qd6 {[%clk 0:02:47]} 14. Kh1 {[%clk 0:02:58]}  Nd7 {[%clk 0:02:38]} 15. Qd2 {[%clk 0:02:58]}  Bg6 {[%clk 0:02:31]} 16. Rfd1 {[%clk 0:02:48]}  Nb6 {[%clk 0:02:23]} 17. Be3 {[%clk 0:02:29]}  c5 {[%clk 0:02:10]} 18. Rb5 {[%clk 0:02:18]}  Rac8 {[%clk 0:02:09]} 19. Rdb1 {[%clk 0:02:18]}  Rfe8 {[%clk 0:01:49]} 20. h3 {[%clk 0:02:11]}  Qe7 {[%clk 0:01:27]} 21. Bg1 {[%clk 0:02:01]}  Nc4 {[%clk 0:01:08]} 22. Qc1 {[%clk 0:01:22]}  Bxd3 {[%clk 0:00:50]} 23. cxd3 {[%clk 0:01:22]}  Ne5 {[%clk 0:00:50]} 24. Qd2 {[%clk 0:01:17]}  a6 {[%clk 0:00:35]} 25. Rb6 {[%clk 0:01:10]}  Qd7 {[%clk 0:00:22]} 26. Rxa6 {[%clk 0:01:01]}  Nxf3 {[%clk 0:00:20]} 27. gxf3 {[%clk 0:00:54]}  Qxh3+ {[%clk 0:00:20]} 28. Qh2 {[%clk 0:00:50]}  Qxf3+ {[%clk 0:00:19]} 29. Qg2 {[%clk 0:00:51]}  Qxd3 {[%clk 0:00:17]} 30. Rab6 {[%clk 0:00:51]}  Re6 {[%clk 0:00:09]} 31. Rb8 {[%clk 0:00:37]}  Ree8 {[%clk 0:00:06]} 32. Rxc8 {[%clk 0:00:28]}  Rxc8 {[%clk 0:00:07]} 33. Qg4 {[%clk 0:00:29]}  Re8 {[%clk 0:00:05]} 34. Rf1 {[%clk 0:00:27]}  Qxf1 {[%clk 0:00:04]} 35. a4 {[%clk 0:00:25]}  Qd3 {[%clk 0:00:04]} 36. Qd7 {[%clk 0:00:25]}  Qe4+ {[%clk 0:00:04]} 37. Kh2 {[%clk 0:00:26]}  Qe5+ {[%clk 0:00:04]} 38. Kh1 {[%clk 0:00:26]}  Qe6 {[%clk 0:00:04]} 39. Qb5 {[%clk 0:00:26]}  d4 {[%clk 0:00:04]} 40. Qd3 {[%clk 0:00:26]}  dxc3 {[%clk 0:00:04]} 41. Qxc3 {[%clk 0:00:27]}  c4 {[%clk 0:00:04]} 42. a5 {[%clk 0:00:26]}  Rc8 {[%clk 0:00:05]} 43. Bb6 {[%clk 0:00:25]}  h6 {[%clk 0:00:05]} 44. Kg2 {[%clk 0:00:24]}  Qe4+ {[%clk 0:00:05]} 45. Kf2 {[%clk 0:00:25]}  Qd5 {[%clk 0:00:03]} 46. Bd4 {[%clk 0:00:24]}  Rd8 {[%clk 0:00:03]} 47. Ke3 {[%clk 0:00:21]}  Re8+ {[%clk 0:00:03]} 48. Kd2 {[%clk 0:00:21]}  Qg2+ {[%clk 0:00:03]} 49. Kc1 {[%clk 0:00:21]}  Qf1+ {[%clk 0:00:03]} 50. Kb2 {[%clk 0:00:21]}  Rb8+ {[%clk 0:00:03]} 51. Bb6 {[%clk 0:00:20]}  Qf6 {[%clk 0:00:02]} 52. Qxf6 {[%clk 0:00:20]}  gxf6 {[%clk 0:00:03]} 53. Kc3 {[%clk 0:00:21]}  h5 {[%clk 0:00:04]} 54. Kxc4 {[%clk 0:00:21]}  h4 {[%clk 0:00:04]} 55. Kb5 {[%clk 0:00:22]}  h3 {[%clk 0:00:05]} 56. a6 {[%clk 0:00:21]}  h2 {[%clk 0:00:05]} 57. a7 {[%clk 0:00:19]}  Rxb6+ {[%clk 0:00:05]} 0-1


[Site "https://www.chess.com"]

[Event "Titled Tuesday Blitz August 08 Late 2023"]
[White "Klukin, Kirill"]
[Black "Bauman_Guy"]
[WhiteFideId "24199273"]
[WhiteElo "2766"]
[BlackElo "2802"]
[Result "1-0"]
[Round "10"]
[TimeControl "180+1"]
[Date "2023.08.08"]
[WhiteClock "0:00:16"]
[BlackClock "0:00:00"]
[Board "14"]

1. d4 {[%clk 0:03:00]}  Nf6 {[%clk 0:02:59]} 2. Nf3 {[%clk 0:03:00]}  b6 {[%clk 0:02:59]} 3. e3 {[%clk 0:03:01]}  Bb7 {[%clk 0:02:59]} 4. Bd3 {[%clk 0:03:02]}  g6 {[%clk 0:02:58]} 5. b3 {[%clk 0:03:02]}  Bg7 {[%clk 0:02:58]} 6. Bb2 {[%clk 0:03:02]}  O-O {[%clk 0:02:59]} 7. O-O {[%clk 0:03:03]}  d6 {[%clk 0:02:59]} 8. c4 {[%clk 0:03:03]}  Nbd7 {[%clk 0:02:59]} 9. Nbd2 {[%clk 0:02:56]}  Re8 {[%clk 0:02:59]} 10. Qc2 {[%clk 0:02:48]}  e5 {[%clk 0:02:59]} 11. dxe5 {[%clk 0:02:48]}  dxe5 {[%clk 0:02:59]} 12. Ne4 {[%clk 0:02:45]}  Nxe4 {[%clk 0:02:53]} 13. Bxe4 {[%clk 0:02:45]}  Bxe4 {[%clk 0:02:53]} 14. Qxe4 {[%clk 0:02:46]}  Nc5 {[%clk 0:02:53]} 15. Qc2 {[%clk 0:02:40]}  Qd3 {[%clk 0:02:46]} 16. Rac1 {[%clk 0:02:35]}  Rad8 {[%clk 0:02:43]} 17. Ba3 {[%clk 0:02:19]}  Ne4 {[%clk 0:02:32]} 18. Bb2 {[%clk 0:02:05]}  g5 {[%clk 0:02:23]} 19. Qxd3 {[%clk 0:01:59]}  Rxd3 {[%clk 0:02:23]} 20. Rfd1 {[%clk 0:01:59]}  Rxd1+ {[%clk 0:02:00]} 21. Rxd1 {[%clk 0:01:59]}  f6 {[%clk 0:02:00]} 22. Rd7 {[%clk 0:01:50]}  Bf8 {[%clk 0:01:58]} 23. Nd2 {[%clk 0:01:04]}  Nxd2 {[%clk 0:01:44]} 24. Rxd2 {[%clk 0:01:04]}  Kf7 {[%clk 0:01:29]} 25. g4 {[%clk 0:01:04]}  Ke6 {[%clk 0:01:27]} 26. Kg2 {[%clk 0:01:03]}  a5 {[%clk 0:01:24]} 27. a4 {[%clk 0:01:00]}  Bb4 {[%clk 0:01:15]} 28. Rd1 {[%clk 0:00:59]}  h5 {[%clk 0:01:15]} 29. h3 {[%clk 0:00:57]}  Rh8 {[%clk 0:01:14]} 30. Kf3 {[%clk 0:00:55]}  hxg4+ {[%clk 0:01:03]} 31. hxg4 {[%clk 0:00:56]}  Rh4 {[%clk 0:01:03]} 32. Bc1 {[%clk 0:00:48]}  Bd6 {[%clk 0:00:54]} 33. Rg1 {[%clk 0:00:31]}  Rh3+ {[%clk 0:00:49]} 34. Kg2 {[%clk 0:00:31]}  Rh4 {[%clk 0:00:41]} 35. Kf3 {[%clk 0:00:31]}  c6 {[%clk 0:00:39]} 36. Bd2 {[%clk 0:00:30]}  Rh3+ {[%clk 0:00:34]} 37. Kg2 {[%clk 0:00:30]}  Rh7 {[%clk 0:00:33]} 38. Bc3 {[%clk 0:00:29]}  Bb4 {[%clk 0:00:32]} 39. Bxb4 {[%clk 0:00:24]}  axb4 {[%clk 0:00:32]} 40. Rd1 {[%clk 0:00:25]}  Rd7 {[%clk 0:00:19]} 41. Rxd7 {[%clk 0:00:24]}  Kxd7 {[%clk 0:00:20]} 42. Kf3 {[%clk 0:00:24]}  Kd6 {[%clk 0:00:05]} 43. Ke4 {[%clk 0:00:24]}  Ke6 {[%clk 0:00:05]} 44. c5 {[%clk 0:00:18]}  bxc5 {[%clk 0:00:03]} 45. Kd3 {[%clk 0:00:17]}  Kd6 {[%clk 0:00:01]} 46. Kc4 {[%clk 0:00:15]}  e4 {[%clk 0:00:01]} 47. a5 {[%clk 0:00:15]}  Kc7 {[%clk 0:00:01]} 48. Kxc5 {[%clk 0:00:16]}  Kb7 {[%clk 0:00:02]} 49. Kxb4 {[%clk 0:00:16]}  Ka6 {[%clk 0:00:02]} 50. Ka4 {[%clk 0:00:16]}  c5 {[%clk 0:00:02]} 51. b4 {[%clk 0:00:16]}  cxb4 {[%clk 0:00:00]} 52. Kxb4 {[%clk 0:00:16]} 1-0


[Site "https://www.chess.com"]

[Event "Titled Tuesday Blitz August 08 Late 2023"]
[White "Grigoriants, Sergey"]
[Black "Alex_Sahakyan2006"]
[WhiteFideId "4130804"]
[WhiteElo "2894"]
[BlackElo "2717"]
[Result "1-0"]
[Round "10"]
[TimeControl "180+1"]
[Date "2023.08.08"]
[WhiteClock "0:00:06"]
[BlackClock "0:00:00"]
[Board "16"]

1. d4 {[%clk 0:02:59]}  Nf6 {[%clk 0:02:59]} 2. c4 {[%clk 0:02:57]}  c5 {[%clk 0:02:59]} 3. d5 {[%clk 0:02:55]}  b5 {[%clk 0:02:59]} 4. Qc2 {[%clk 0:02:52]}  b4 {[%clk 0:02:58]} 5. e4 {[%clk 0:02:51]}  d6 {[%clk 0:02:58]} 6. Nf3 {[%clk 0:02:50]}  g6 {[%clk 0:02:58]} 7. Be2 {[%clk 0:02:50]}  Bg7 {[%clk 0:02:58]} 8. O-O {[%clk 0:02:50]}  O-O {[%clk 0:02:59]} 9. h3 {[%clk 0:02:50]}  a5 {[%clk 0:02:58]} 10. Bf4 {[%clk 0:02:48]}  e5 {[%clk 0:02:57]} 11. dxe6 {[%clk 0:02:41]}  Bxe6 {[%clk 0:02:57]} 12. Rd1 {[%clk 0:02:40]}  Ra6 {[%clk 0:02:44]} 13. e5 {[%clk 0:02:32]}  Nh5 {[%clk 0:02:43]} 14. Bh2 {[%clk 0:02:23]}  Nd7 {[%clk 0:02:30]} 15. g4 {[%clk 0:02:18]}  dxe5 {[%clk 0:02:25]} 16. gxh5 {[%clk 0:02:18]}  Bxh3 {[%clk 0:02:10]} 17. h6 {[%clk 0:01:54]}  Bxh6 {[%clk 0:02:05]} 18. Nbd2 {[%clk 0:01:48]}  Qe7 {[%clk 0:01:54]} 19. Nf1 {[%clk 0:01:41]}  e4 {[%clk 0:01:48]} 20. Ne1 {[%clk 0:01:34]}  f5 {[%clk 0:01:42]} 21. Qb3 {[%clk 0:01:29]}  Bxf1 {[%clk 0:01:31]} 22. Bxf1 {[%clk 0:01:30]}  Ne5 {[%clk 0:01:25]} 23. Rd5 {[%clk 0:01:17]}  Ng4 {[%clk 0:01:25]} 24. Be2 {[%clk 0:01:04]}  Nxh2 {[%clk 0:01:18]} 25. Kxh2 {[%clk 0:01:04]}  Bf4+ {[%clk 0:01:10]} 26. Kg1 {[%clk 0:01:02]}  Qh4 {[%clk 0:01:05]} 27. Bf3 {[%clk 0:00:26]}  a4 {[%clk 0:00:46]} 28. Qd1 {[%clk 0:00:24]}  Qh2+ {[%clk 0:00:19]} 29. Kf1 {[%clk 0:00:24]}  exf3 {[%clk 0:00:20]} 30. Qxf3 {[%clk 0:00:25]}  Re6 {[%clk 0:00:19]} 31. Nd3 {[%clk 0:00:24]}  Bh6 {[%clk 0:00:15]} 32. Nxc5 {[%clk 0:00:23]}  Re7 {[%clk 0:00:14]} 33. Rad1 {[%clk 0:00:23]}  Rfe8 {[%clk 0:00:14]} 34. Rd8 {[%clk 0:00:23]}  Qe5 {[%clk 0:00:11]} 35. Rxe8+ {[%clk 0:00:20]}  Rxe8 {[%clk 0:00:12]} 36. Nd7 {[%clk 0:00:16]}  Qe6 {[%clk 0:00:08]} 37. c5 {[%clk 0:00:15]}  Bg7 {[%clk 0:00:07]} 38. b3 {[%clk 0:00:13]}  axb3 {[%clk 0:00:06]} 39. axb3 {[%clk 0:00:14]}  Rc8 {[%clk 0:00:04]} 40. Rd6 {[%clk 0:00:11]}  Qe4 {[%clk 0:00:04]} 41. Qxe4 {[%clk 0:00:08]}  fxe4 {[%clk 0:00:04]} 42. c6 {[%clk 0:00:09]}  Kf7 {[%clk 0:00:05]} 43. Nb6 {[%clk 0:00:09]}  Rc7 {[%clk 0:00:05]} 44. Nd5 {[%clk 0:00:09]}  Be5 {[%clk 0:00:05]} 45. Rd7+ {[%clk 0:00:07]}  Ke6 {[%clk 0:00:00]} 46. Nxc7+ {[%clk 0:00:06]} 1-0


[Site "https://www.chess.com"]

[Event "Titled Tuesday Blitz August 08 Late 2023"]
[White "Hoang, Thi Bao Tram"]
[Black "Zemlyanskii, Ivan"]
[WhiteFideId "12401102"]
[BlackFideId "24249971"]
[WhiteElo "2684"]
[BlackElo "2878"]
[Result "0-1"]
[Round "10"]
[TimeControl "180+1"]
[Date "2023.08.08"]
[WhiteClock "0:00:00"]
[BlackClock "0:00:07"]
[Board "18"]

1. Nf3 {[%clk 0:02:55]}  d5 {[%clk 0:03:00]} 2. g3 {[%clk 0:02:55]}  Nf6 {[%clk 0:03:00]} 3. Bg2 {[%clk 0:02:55]}  c5 {[%clk 0:03:00]} 4. O-O {[%clk 0:02:54]}  e6 {[%clk 0:02:57]} 5. c4 {[%clk 0:02:50]}  d4 {[%clk 0:02:56]} 6. e3 {[%clk 0:02:42]}  Nc6 {[%clk 0:02:52]} 7. exd4 {[%clk 0:02:37]}  cxd4 {[%clk 0:02:53]} 8. d3 {[%clk 0:02:37]}  Bd6 {[%clk 0:02:53]} 9. a3 {[%clk 0:02:33]}  a5 {[%clk 0:02:52]} 10. b3 {[%clk 0:02:34]}  O-O {[%clk 0:02:50]} 11. Nbd2 {[%clk 0:02:31]}  e5 {[%clk 0:02:49]} 12. Nh4 {[%clk 0:02:23]}  Bg4 {[%clk 0:02:37]} 13. Bf3 {[%clk 0:02:19]}  Be6 {[%clk 0:02:34]} 14. Bg2 {[%clk 0:02:07]}  Nd7 {[%clk 0:02:30]} 15. Ne4 {[%clk 0:01:48]}  Be7 {[%clk 0:02:29]} 16. Nf3 {[%clk 0:01:48]}  h6 {[%clk 0:02:26]} 17. Re1 {[%clk 0:01:42]}  f5 {[%clk 0:02:16]} 18. Ned2 {[%clk 0:01:41]}  Bf6 {[%clk 0:02:15]} 19. Bb2 {[%clk 0:01:40]}  Nc5 {[%clk 0:02:12]} 20. Qc2 {[%clk 0:01:33]}  Qd7 {[%clk 0:02:08]} 21. Re2 {[%clk 0:01:25]}  Rae8 {[%clk 0:02:03]} 22. Ree1 {[%clk 0:01:16]}  g5 {[%clk 0:02:02]} 23. h3 {[%clk 0:01:13]}  h5 {[%clk 0:01:57]} 24. Rab1 {[%clk 0:01:11]}  g4 {[%clk 0:01:40]} 25. hxg4 {[%clk 0:00:51]}  hxg4 {[%clk 0:01:41]} 26. Nh2 {[%clk 0:00:51]}  Qh7 {[%clk 0:01:27]} 27. Ba1 {[%clk 0:00:41]}  Na6 {[%clk 0:01:09]} 28. Ndf1 {[%clk 0:00:37]}  Qf7 {[%clk 0:00:52]} 29. Qd2 {[%clk 0:00:34]}  Qe7 {[%clk 0:00:45]} 30. Bd5 {[%clk 0:00:22]}  Nc7 {[%clk 0:00:30]} 31. Bg2 {[%clk 0:00:19]}  Qxa3 {[%clk 0:00:27]} 32. Qh6 {[%clk 0:00:18]}  Qe7 {[%clk 0:00:25]} 33. f3 {[%clk 0:00:15]}  gxf3 {[%clk 0:00:19]} 34. Nxf3 {[%clk 0:00:16]}  Qg7 {[%clk 0:00:19]} 35. Qxg7+ {[%clk 0:00:16]}  Kxg7 {[%clk 0:00:20]} 36. Bh3 {[%clk 0:00:13]}  Na6 {[%clk 0:00:18]} 37. Kg2 {[%clk 0:00:13]}  Nc5 {[%clk 0:00:17]} 38. Red1 {[%clk 0:00:11]}  Bc8 {[%clk 0:00:13]} 39. N1h2 {[%clk 0:00:09]}  Nxd3 {[%clk 0:00:12]} 40. Rxd3 {[%clk 0:00:08]}  e4 {[%clk 0:00:12]} 41. Rdd1 {[%clk 0:00:09]}  exf3+ {[%clk 0:00:12]} 42. Nxf3 {[%clk 0:00:09]}  Re2+ {[%clk 0:00:12]} 43. Kf1 {[%clk 0:00:10]}  Re3 {[%clk 0:00:10]} 44. Nxd4 {[%clk 0:00:09]}  Nxd4 {[%clk 0:00:10]} 45. Bxd4 {[%clk 0:00:09]}  Rxg3 {[%clk 0:00:10]} 46. Bg2 {[%clk 0:00:08]}  f4 {[%clk 0:00:06]} 47. Bf2 {[%clk 0:00:09]}  Rc3 {[%clk 0:00:06]} 48. Be4 {[%clk 0:00:03]}  Bh3+ {[%clk 0:00:05]} 49. Ke1 {[%clk 0:00:03]}  Re8 {[%clk 0:00:05]} 50. Kd2 {[%clk 0:00:02]}  Rxe4 {[%clk 0:00:05]} 51. Rg1+ {[%clk 0:00:02]}  Kf7 {[%clk 0:00:05]} 52. Rh1 {[%clk 0:00:02]}  Bf5 {[%clk 0:00:05]} 53. Rh5 {[%clk 0:00:02]}  Bg6 {[%clk 0:00:04]} 54. Rb5 {[%clk 0:00:02]}  Re7 {[%clk 0:00:03]} 55. Rb6 {[%clk 0:00:01]}  Bxb1 {[%clk 0:00:02]} 56. Rxf6+ {[%clk 0:00:01]}  Kxf6 {[%clk 0:00:02]} 57. Bd4+ {[%clk 0:00:01]}  Kf7 {[%clk 0:00:03]} 58. Kxc3 {[%clk 0:00:02]}  Be4 {[%clk 0:00:03]} 59. Bc5 {[%clk 0:00:02]}  f3 {[%clk 0:00:04]} 60. b4 {[%clk 0:00:02]}  axb4+ {[%clk 0:00:04]} 61. Kxb4 {[%clk 0:00:03]}  Re6 {[%clk 0:00:05]} 62. Kb5 {[%clk 0:00:03]}  Bc6+ {[%clk 0:00:05]} 63. Kb6 {[%clk 0:00:03]}  Re2 {[%clk 0:00:06]} 64. Bd4 {[%clk 0:00:03]}  f2 {[%clk 0:00:07]} 65. c5 {[%clk 0:00:04]}  f1=Q {[%clk 0:00:06]} 66. Ka7 {[%clk 0:00:05]}  Ke6 {[%clk 0:00:07]} 67. Kb8 {[%clk 0:00:05]}  Kd5 {[%clk 0:00:08]} 68. Be5 {[%clk 0:00:05]}  Rxe5 {[%clk 0:00:07]} 69. Kc7 {[%clk 0:00:00]}  Kxc5 {[%clk 0:00:07]} 0-1


[Site "https://www.chess.com"]

[Event "Titled Tuesday Blitz August 08 Late 2023"]
[White "Ashraf, Artin"]
[Black "Vlassov, Nikolai"]
[WhiteFideId "22514805"]
[BlackFideId "4103360"]
[WhiteElo "2827"]
[BlackElo "2597"]
[Result "0-1"]
[Round "10"]
[TimeControl "180+1"]
[Date "2023.08.08"]
[WhiteClock "0:00:00"]
[BlackClock "0:00:43"]
[Board "21"]

1. e4 {[%clk 0:02:59]}  Nc6 {[%clk 0:02:59]} 2. Nf3 {[%clk 0:02:56]}  d5 {[%clk 0:02:59]} 3. exd5 {[%clk 0:02:54]}  Qxd5 {[%clk 0:03:00]} 4. Nc3 {[%clk 0:02:54]}  Qa5 {[%clk 0:03:00]} 5. d4 {[%clk 0:02:53]}  Bg4 {[%clk 0:03:00]} 6. d5 {[%clk 0:02:54]}  O-O-O {[%clk 0:03:00]} 7. Bd2 {[%clk 0:02:23]}  Nb4 {[%clk 0:02:59]} 8. Bc4 {[%clk 0:02:21]}  Bxf3 {[%clk 0:02:59]} 9. Qxf3 {[%clk 0:01:50]}  Nxc2+ {[%clk 0:02:59]} 10. Kd1 {[%clk 0:01:37]}  Nxa1 {[%clk 0:02:59]} 11. Nb5 {[%clk 0:01:29]}  Qa4+ {[%clk 0:02:51]} 12. b3 {[%clk 0:01:28]}  Qxa2 {[%clk 0:02:50]} 13. Ke2 {[%clk 0:00:49]}  Nf6 {[%clk 0:02:40]} 14. Rc1 {[%clk 0:00:47]}  e5 {[%clk 0:02:09]} 15. Kd1 {[%clk 0:00:32]}  Bd6 {[%clk 0:01:50]} 16. Bc3 {[%clk 0:00:10]}  Nxb3 {[%clk 0:01:43]} 17. Ra1 {[%clk 0:00:08]}  Qxa1+ {[%clk 0:01:33]} 18. Bxa1 {[%clk 0:00:08]}  Nxa1 {[%clk 0:01:33]} 19. Qh3+ {[%clk 0:00:05]}  Kb8 {[%clk 0:01:32]} 20. Qe3 {[%clk 0:00:04]}  b6 {[%clk 0:01:27]} 21. Qc1 {[%clk 0:00:03]}  Bc5 {[%clk 0:01:05]} 22. Qxa1 {[%clk 0:00:02]}  a5 {[%clk 0:01:05]} 23. Qa2 {[%clk 0:00:02]}  Rd7 {[%clk 0:00:54]} 24. Ke2 {[%clk 0:00:02]}  Rhd8 {[%clk 0:00:53]} 25. Nc3 {[%clk 0:00:01]}  Bb4 {[%clk 0:00:49]} 26. Nb5 {[%clk 0:00:00]}  c6 {[%clk 0:00:43]} 0-1


[Site "https://www.chess.com"]